Cogmind - Beta 17 @@@ ROGUE MODE // 2026.07.25 @ 11:24:43 Player: 50l Result: Destroyed by as-23628 with Assembled Heavy Rifle Performance ------------- Evolutions (0) 0 Regions Visited (4) 800 Robots Destroyed (30) 150 Value Destroyed (489) 489 Prototype IDs (28) 560 Alien Tech Used (0) 0 Bonus (300) 300 TOTAL SCORE: 2299 Bonus ------- Aligned with FarCom 300 Cogmind --------- Core Integrity 0/250 Matter 228/300 Energy 125/125 System Corruption 0% Temperature Warm (129) Movement Rolling (140) Ox4 Location -9/Mines Parts ------- > --- POWER (1) -------- Light Ion Engine > --- PROPULSION (2) --- Light Treads Wheel > --- UTILITY (2) ------ High-capacity Storage Unit Hacking Suite > --- WEAPON (2) ------- Small Laser Light Assault Rifle > --- INVENTORY (20) --- Light Ion Engine Wheel Compact Wheel Flight Unit Medium Storage Unit Large Matter Pod (150) Experimental Sensor Array Improved Terrain Scanner Seismic Detector Transport Network Coupler Improved Targeting Computer Power Shielding Backup Plating I Hacking Suite Supersonic Drone Bay (1/1) Datajack Mining Laser Peak State ------------ > --- POWER ------------ Light Ion Engine > --- PROPULSION ------- Light Treads Wheel > --- UTILITY ---------- High-capacity Storage Unit Hacking Suite > --- WEAPON ----------- Small Laser Light Cannon > --- INVENTORY -------- Light Ion Engine Light Ion Engine Wheel Compact Wheel Flight Unit Medium Storage Unit Large Matter Pod Experimental Sensor Array Improved Terrain Scanner Seismic Detector Transport Network Coupler Improved Targeting Computer Power Shielding Backup Plating I Hacking Suite Supersonic Drone Bay Light Assault Rifle Datajack Mining Laser Stasis Trap [Rating: 13] Favorites ----------- Power Light Ion Engine Engine Light Ion Engine Power Core Light Nuclear Core Propulsion Light Treads Treads Light Treads Wheel Wheel Utility Hacking Suite Storage High-capacity Storage Unit Hackware Hacking Suite Protection Backup Plating I Weapon Small Laser Energy Gun Small Laser Ballistic Gun Light Assault Rifle Ballistic Cannon Light Cannon Special Weapon Mining Laser Special Melee Weapon Datajack Build | -11 -10 -10 -10 -9 ------- Run | Yrd Mat Min Exi Min Slots Evolved . | . . . . . Power . | . . . . . Propulsion . | . . . . . Utility . | . . . . . Weapon . | . . . . . Parts Attached 20 | 6 8 3 1 2 Power 5 | 1 2 1 . 1 Engine 4 | 1 1 1 . 1 Core 1 | . 1 . . . Reactor . | . . . . . Propulsion 4 | 2 . 2 . . Treads 3 | 2 . 1 . . Leg . | . . . . . Wheel 1 | . . 1 . . Hover . | . . . . . Flight . | . . . . . Utility 4 | 1 3 . . . Device . | . . . . . Storage 3 | 1 2 . . . Processor . | . . . . . Hackware 1 | . 1 . . . Protection . | . . . . . Artifact . | . . . . . Weapon 7 | 2 3 . 1 1 Energy Gun 3 | 2 1 . . . Energy Cannon . | . . . . . Ballistic Gun 1 | . . . . 1 Ballistic Cannon 1 | . 1 . . . Launcher . | . . . . . Special Weapon 1 | . 1 . . . Impact Weapon . | . . . . . Slashing Weapon . | . . . . . Piercing Weapon . | . . . . . Special Melee Weapon 1 | . . . 1 . Unidentified Prototypes . | . . . . . Parts Lost 9 | . 3 4 . 2 Power 4 | . 2 1 . 1 Propulsion 2 | . . 2 . . Utility . | . . . . . Weapon 3 | . 1 1 . 1 Highest Loss Streak 3 | . 1 3 . 1 To Critical Strikes . | . . . . . Average Backups 12 | 2 10 15 16 18 Power 1 | . . 1 2 1 Propulsion 3 | 1 3 3 3 3 Utility 5 | . 3 7 8 10 Weapon 2 | . 2 1 2 2 Tool/Special . | . . . . . Unused Backups 13 | . . . . 13 Power 1 | . . . . 1 Propulsion 3 | . . . . 3 Utility 9 | . . . . 9 Weapon . | . . . . . Tool/Special . | . . . . . Average Slot Usage (%) 97 | . 95 99 100 100 Engine 8 | . 6 6 14 14 Core 5 | . 7 7 . . Treads 22 | . 26 21 14 14 Wheel 4 | . . 6 14 14 Storage 14 | . 14 14 14 14 Hackware 11 | . 9 14 14 14 Protection 1 | . 2 . . . Energy Gun 20 | . 26 14 8 12 Ballistic Cannon 5 | . . 13 14 14 Peak Build Rating 13 | 6 12 12 11 13 Average Rating 10 | 4 9 11 11 11 On Entrance 8 | . 6 12 11 11 Avg Prop Armor Cover (%) 12 | . . 12 12 11 Naked Turns . | . . . . . Heaviest Build 49 | 10 47 49 47 47 Greatest Support 40 | 40 40 40 10 10 Greatest Overweight (x) 4 | . 1 4 4 4 Average Overweight (x) 1 | . . 2 4 4 Largest Inventory Capacity 20 | 8 20 20 20 20 Average Capacity 17 | 6 15 20 20 20 Most Carried 20 | 4 13 16 17 20 Average Carried 12 | 2 10 15 16 18 Final Capacity 20 | 8 20 20 20 20 Final Carried 17 | 4 13 16 17 17 Class Distribution -------------------- 100% | Mutant Dominant Class ---------------- Mutant | -10/Materials Mutant | -10/Mines Mutant | -10/Exiles Mutant | -9/Mines Resources | -11 -10 -10 -10 -9 ----------- Run | Yrd Mat Min Exi Min Matter Collected 654 | 244 269 105 . 36 Remotely . | . . . . . Salvage Created 801 | . 575 172 . 54 Parts 52 | . 37 15 . . Haulers Intercepted 2 | . 2 . . . Recyclers Shooed 1 | . . 1 . . Parts Field Recycled . | . . . . . Retrieved Matter . | . . . . . Parts Self-Destructed . | . . . . . Prevented . | . . . . . Parts Restored . | . . . . . Kills | -11 -10 -10 -10 -9 ------- Run | Yrd Mat Min Exi Min Combat Hostiles Destroyed 25 | . 13 6 . 6 Guns 19 | . 13 4 . 2 Cannons 6 | . . 2 . 4 Classes Destroyed 9 | . 5 3 . 1 Worker 1 | . . 1 . . Tunneler 2 | . . 2 . . Hauler 2 | . 2 . . . Recycler 1 | . . 1 . . Operator 2 | . 2 . . . Watcher 3 | . 3 . . . Swarmer 12 | . 6 6 . . Grunt 7 | . 7 . . . Assembled 6 | . . . . 6 Best Kill Streak 7 | . 4 7 . 5 Combat Bots Only 5 | . 3 3 . 5 Max Kills in Single Turn 2 | . 1 2 . 2 Gunslinging . | . . . . . Exploded . | . . . . . Melee . | . . . . . Uniques/NPCs Destroyed . | . . . . . Combat | -11 -10 -10 -10 -9 -------- Run | Yrd Mat Min Exi Min Hostile Shots Fired 171 | . 73 72 . 26 Missed 39 | . 15 15 . 9 Hits 132 | . 58 57 . 17 Melee 3 | . . . . 3 Projectile 129 | . 58 57 . 14 Damage Taken 1393 | . 670 443 . 280 Core 261 | . 136 52 . 73 Absorbed by Shields . | . . . . . Regen/Repaired (Parts) 136 | . 136 . . . Core Remaining (%) 100 | 100 . . . . Volleys Fired 98 | . 58 22 . 18 Largest 2 | . 2 2 . 2 Hottest 100 | . 100 80 . 100 Shots Fired 190 | . 112 44 . 34 Gun 151 | . 109 24 . 18 Cannon 36 | . 2 20 . 14 Launcher . | . . . . . Special 3 | . 1 . . 2 Kinetic 38 | . 2 20 . 16 Thermal 152 | . 110 24 . 18 Explosive . | . . . . . Electromagnetic . | . . . . . Robot Hit Streak 14 | . 7 11 . 14 Robot Miss Streak 7 | . 4 7 . 4 Penetration Max . | . . . . . Secondary Targets 2 | . 2 . . . Max Gunslinging Chain 1 | . 1 . . . Shots Hit Robots 108 | . 67 20 2 19 Core Hits 59 | . 37 10 . 12 Critical Kills . | . . . . . Critical Parts Destroyed . | . . . . . Critical Strikes 1 | . . 1 . . Blast 1 | . . 1 . . Melee Attacks 3 | . . . 2 1 Impact . | . . . . . Slashing . | . . . . . Piercing . | . . . . . Sneak Attacks 3 | . . . 2 1 Combat Hostiles . | . . . . . Follow-up Attacks . | . . . . . Damage Inflicted 1414 | . 750 399 . 265 Guns 1045 | . 750 181 . 114 Cannons 369 | . . 218 . 151 Explosions . | . . . . . Melee . | . . . . . Ramming . | . . . . . Kinetic 376 | . . 218 . 158 Thermal 1038 | . 750 181 . 107 Explosive . | . . . . . Electromagnetic . | . . . . . Impact . | . . . . . Slashing . | . . . . . Piercing . | . . . . . Highest Corruption . | . . . . . Average Corruption . | . . . . . Corruption Purged . | . . . . . Corruption Blocked . | . . . . . Overload Shots . | . . . . . Overflow Damage . | . . . . . Projectiles . | . . . . . Explosions . | . . . . . Melee . | . . . . . Knockbacks 6 | . . 4 . 2 Impact . | . . . . . Kinetic 5 | . . 4 . 1 Secondary 1 | . . . . 1 Self-Inflicted Damage . | . . . . . Shots . | . . . . . Rammed . | . . . . . Targets Rammed . | . . . . . Kicked . | . . . . . Crushed . | . . . . . Highest Temperature 165 | . 165 120 . 139 Average Temperature 53 | . 54 45 . 62 Received Heat Transfer 357 | . 297 . . 60 Siege Activations . | . . . . . Martial Activations . | . . . . . Shielding Activations . | . . . . . Robots Disrupted . | . . . . . Combat Hostiles . | . . . . . Robots Corrupted . | . . . . . Combat Hostiles . | . . . . . Parts Fried . | . . . . . Impact Corruptions . | . . . . . Robots Melted . | . . . . . Combat Hostiles . | . . . . . Parts Melted 1 | . 1 . . . Heat Transferred 2350 | . 1700 400 . 250 Parts Sabotaged . | . . . . . Parts Stolen . | . . . . . Parts Stripped . | . . . . . Power Chain Reactions . | . . . . . Alert | -11 -10 -10 -10 -9 ------- Run | Yrd Mat Min Exi Min Maximum Alert Level . | . . . . . Low Security (%) 100 | 100 100 100 . 100 Level 1 . | . . . . . Level 2 . | . . . . . Level 3 . | . . . . . Level 4 . | . . . . . Level 5 . | . . . . . High Security . | . . . . . Max Security . | . . . . . Peak Influence 93 | . 93 60 . . Initial 1 | . . 1 . . Average 12 | . 13 28 . . Influence Increases 595 | . 405 190 . . Destroy 0b10 Robot/C 380 | . 260 120 . . Destroy 0b10 Robot/NC 55 | . 35 20 . . Destroy Leader 70 | . 50 20 . . Successful Hack 14 | . 14 . . . Select Force Hacks 30 | . 30 . . . Destroy Structure 1 | . 1 . . . Lose Combat Pursuer 45 | . 15 30 . . Influence Decreases 595 | . 401 184 10 . Entered New Map 13 | . . 3 10 . Time Decay 446 | . 296 150 . . Lost Part 51 | . 20 31 . . Purge Threat 85 | . 85 . . . Squads Dispatched 2 | . 2 . . . Investigation 1 | . 1 . . . Extermination . | . . . . . Reinforcement 1 | . 1 . . . Assault . | . . . . . Garrison . | . . . . . Intercept . | . . . . . Searches Triggered . | . . . . . Construction Impeded . | . . . . . Haulers Reinforced . | . . . . . Active Scanning Responses . | . . . . . Cargo Convoy Interrupts . | . . . . . Stealth | -11 -10 -10 -10 -9 --------- Run | Yrd Mat Min Exi Min Distress Signals . | . . . . . Communications Jammed . | . . . . . Distress Signals . | . . . . . Times Spotted 47 | . 21 8 . 18 Peak Tracking Total 20 | . 3 3 . 20 Tactical Retreats 4 | . 1 1 . 2 Traps | -11 -10 -10 -10 -9 ------- Run | Yrd Mat Min Exi Min Traps Triggered . | . . . . . Indirectly . | . . . . . Trap Hack Attempts . | . . . . . Triggered . | . . . . . Disarmed . | . . . . . Reprogrammed . | . . . . . Reused 1 | . . . . 1 Traps Extracted . | . . . . . Installed 1 | . . . . 1 Triggered . | . . . . . Most Traps Carried 1 | . . . . 1 Machines | -11 -10 -10 -10 -9 ---------- Run | Yrd Mat Min Exi Min Machines Disabled . | . . . . . Max in Single Turn . | . . . . . Machines Repaired . | . . . . . Machines Dismantled . | . . . . . Machines Sabotaged . | . . . . . Overloaded Fab Kills . | . . . . . Hacking | -11 -10 -10 -10 -9 --------- Run | Yrd Mat Min Exi Min Machines Accessed 10 | . 9 . 1 . Terminals 7 | . 7 . . . Fabricators . | . . . . . Repair Stations 1 | . 1 . . . Recycling Units 1 | . 1 . . . Scanalyzers . | . . . . . Garrison Access . | . . . . . Total Hacks 31 | . 30 . 1 . Successful 20 | . 19 . 1 . Failed 10 | . 10 . . . Catastrophic . | . . . . . Database Lockouts 1 | . 1 . . . Manual 23 | . 22 . 1 . Terminals 24 | . 24 . . . Fabricators . | . . . . . Repair Stations 4 | . 4 . . . Recycling Units 2 | . 2 . . . Scanalyzers . | . . . . . Garrison Access . | . . . . . Terminal Hacks 3 | . 2 . 1 . Robot Analysis 1 | . 1 . . . Unreport Threat 1 | . 1 . . . Proto ID Catalog 1 | . . . 1 . Fabricator Hacks . | . . . . . Repair Station Hacks 3 | . 3 . . . Scan Component 1 | . 1 . . . Repair 1 | . 1 . . . Refit 1 | . 1 . . . Recycling Unit Hacks 1 | . 1 . . . Report Inventory 1 | . 1 . . . Scanalyzer . | . . . . . Garrison Access Hacks . | . . . . . Unauthorized Hacks 13 | . 13 . . . Terminals 12 | . 12 . . . Botnet 6 | . 6 . . . Skim 6 | . 6 . . . Fabricators . | . . . . . Repair Stations . | . . . . . Recycling Units 1 | . 1 . . . Tunnel 1 | . 1 . . . Scanalyzers . | . . . . . Garrison Access . | . . . . . Data Cores Recovered 1 | . 1 . . . Used 1 | . 1 . . . Hacking Detections 7 | . 7 . . . Full Trace Events 1 | . 1 . . . Feedback Events . | . . . . . Feedback Blocked . | . . . . . Robot Schematics Acquired . | . . . . . Robots Built . | . . . . . Authchips . | . . . . . Time . | . . . . . Total Robot Build Rating . | . . . . . Part Schematics Acquired . | . . . . . Parts Built . | . . . . . Authchips . | . . . . . Time . | . . . . . Total Part Build Rating . | . . . . . Part Studies Acquired . | . . . . . Parts Repaired 1 | . 1 . . . Time 26 | . 26 . . . Parts Recycled . | . . . . . Recycled Matter . | . . . . . Retrieved Matter . | . . . . . Retrieved Components . | . . . . . Parts Scanalyzed . | . . . . . Part Schematics Acquired . | . . . . . Parts Damaged . | . . . . . Bothacking | -11 -10 -10 -10 -9 ------------ Run | Yrd Mat Min Exi Min Used RIF Installer . | . . . . . Robots Hacked 3 | . . . 2 1 Non-combat 2 | . . . 2 . Combat 1 | . . . . 1 Robot Hacks Applied 3 | . . . 2 1 parse_system 3 | . . . 2 1 Relay Couplers Released . | . . . . . Fabnet Peak Effective % . | . . . . . Robots Rewired . | . . . . . Allies Hacked . | . . . . . Hacks Repelled . | . . . . . Allies | -11 -10 -10 -10 -9 -------- Run | Yrd Mat Min Exi Min Total Allies . | . . . . . Largest Group . | . . . . . Highest-Rated Group . | . . . . . Highest-Rated Ally . | . . . . . Total Orders . | . . . . . Ally Attacks . | . . . . . Total Damage . | . . . . . Kills . | . . . . . Allies Corrupted . | . . . . . Allies Melted . | . . . . . Intel | -11 -10 -10 -10 -9 ------- Run | Yrd Mat Min Exi Min Active Infowar (turns) . | . . . . . Robot Analysis Total 1 | . 1 . . . Derelict Logs Recovered 2 | . . 1 . 1 Drone Launches . | . . . . . Drone Recoveries . | . . . . . Exploration | -11 -10 -10 -10 -9 ------------- Run | Yrd Mat Min Exi Min Turns Passed 2876 | 64 1715 308 355 434 Spaces Moved 1319 | 36 709 120 218 236 Core 5 | 5 . . . . Treads 783 | 31 709 43 . . Legs . | . . . . . Wheels 531 | . . 77 218 236 Hover . | . . . . . Flight . | . . . . . Fastest Speed 50 | 50 160 140 140 140 Average Speed 178 | 144 204 175 140 140 Slowest Speed 240 | 160 240 240 140 140 Overloaded Moves . | . . . . . Propulsion Burnouts . | . . . . . Robots Hopped . | . . . . . Potential Cave-ins . | . . . . . Cave-ins Triggered . | . . . . . Exploration Rate (%) 52 | 3 98 35 63 61 Regions Visited 4 Branch Regions 3 Pre-discovered Areas 2 | . 1 1 . . Known Exits Taken . | . . . . . Unknown Exits Taken 4 | 1 1 1 1 . Scrap Searched 2 | . . 1 . 1 Spaces Dug 3 | . 1 . . 2 Terrain Destroyed 3 | . 1 . . 2 Melee . | . . . . . Projectile 3 | . 1 . . 2 AOE . | . . . . . Terrain Rammed . | . . . . . Walls Destroyed . | . . . . . Machines Disabled . | . . . . . Actions | -11 -10 -10 -10 -9 --------- Run | Yrd Mat Min Exi Min Total 1643 | 45 857 173 266 302 Wait 169 | . 66 21 45 37 Move 1315 | 35 708 119 217 236 Hop . | . . . . . Pick Up 27 | 4 12 7 1 3 Fast Attach 8 | 6 2 . . . Attach 10 | . 4 4 . 2 Detach 1 | . 1 . . . Swap 8 | . 4 . 1 3 Drop 3 | . 2 . . 1 Fire 98 | . 58 22 . 18 Melee 3 | . . . 2 1 Ram . | . . . . . Kick . | . . . . . Crush . | . . . . . Escape Stasis . | . . . . . Rewire . | . . . . . Trap 1 | . . . . 1 Miscellaneous . | . . . . . Route ------- -11/Scrapyard -10/Materials (discovered 5 exits: *Mat x3 / [*Min] / [*Sub]) -10/Mines -10/Exiles -9/Mines History --------- Turn | Location | Event 6 | -11/Scrapyard | Discovered new exit (range 15) 65 | -11/Scrapyard | Entered Materials 300 | -10/Materials | Build established: Mutant 340 | -10/Materials | Repaired Lgt. Treads 485 | -10/Materials | Discovered new exit (range 3) 756 | -10/Materials | Central database locked down 814 | -10/Materials | Discovered new exit (range 15) 1021 | -10/Materials | Discovered new exit (range 7) 1110 | -10/Materials | Discovered new exit (range 16) 1365 | -10/Materials | Identified exit to Materials 1409 | -10/Materials | Loaded intel: 2 recycling unit locations 1445 | -10/Materials | Learned 4 Subcaves zone layouts 1473 | -10/Materials | Loaded intel: 15 trap records 1497 | -10/Materials | Learned 4 Subcaves zone layouts 1516 | -10/Materials | Learned location of 2 exits from Materials 1520 | -10/Materials | Core integrity fell below 50% 1543 | -10/Materials | Learned Recycling recycling unit intel 1580 | -10/Materials | Learned location of 1 exit from Storage 1780 | -10/Materials | Entered Mines 1969 | -10/Mines | Lost 3 parts (1p2n) 2020 | -10/Mines | Learned location of Storage (-9) 2082 | -10/Mines | Deemed a non-threat by the Exiles lab entrance 2082 | -10/Mines | Discovered new exit (range 5) 2088 | -10/Mines | Entered Exiles 2121 | -10/Exiles | Met 8R-AWN 2147 | -10/Exiles | Met EX-HEX 2185 | -10/Exiles | Met EX-BIN 2200 | -10/Exiles | Aligned with FarCom system 2202 | -10/Exiles | Given EX-Vault access code 2234 | -10/Exiles | Opened EX-Vault 2244 | -10/Exiles | Found Supersonic Drone Bay 2271 | -10/Exiles | Warned to stay clear of 0b10 Research branches 2292 | -10/Exiles | Exiles lab attacked by MAIN.C 2377 | -10/Exiles | Discovered new exit (range 14) 2443 | -10/Exiles | Left Exiles lab with Supersonic Drone Bay 2443 | -10/Exiles | Entered Mines 2468 | -9/Mines | Met a Derelict bent on vengeance 2502 | -9/Mines | Found a damaged Exp. Sensor Array with a note attached 2505 | -9/Mines | Found Prototype Device 2657 | -9/Mines | Found a hidden stash of uninstalled traps 2738 | -9/Mines | Assembled infested the area 2742 | -9/Mines | Learned location of 1 exit from Proximity Caves 2743 | -9/Mines | Assisted by a Guerilla fighting off Assembled 2866 | -9/Mines | Core integrity fell below 20% 2877 | -9/Mines | Destroyed by as-23628 with Assembled Heavy Rifle Last Messages --------------- 02755_ Field strength at 72. 02756_ Field strength at 65. 02757_ as-15054 sneak attacks. 02760_ T-07 Excavator is excavating. 02780_ as-15054 destroyed. 02781_ T-07 Excavator is excavating. 02827_ Acquired 16 matter. 02828_ T-07 Excavator is excavating. 02836_ Lgt. Ion Engine destroyed. 02836_ T-07 Excavator is excavating. 02845_ as-76846 destroyed. 02848_ as-73371 knocked back. 02849_ T-07 Excavator is excavating. 02854_ as-99156 destroyed. 02857_ T-07 Excavator is excavating. 02860_ as-87248 destroyed. 02860_ as-73371 destroyed. 02861_ T-07 Excavator is excavating. 02869_ as-89256 destroyed. 02872_ Lgt. Cannon destroyed. Map ----- +----------------------------------------------------+ | ?????????????????????????????????????????????????? | | ?????????????????????????????????????????????????? | | ???????????????????????????????????###???????????? | | ??????????????????????????????????# ##??????????? | | ?????????????????????????####???## #??????????? | | ????????????????????????## ??# #??????????? | | ????????????????????????# # ????????????? | | ????????????????????????# #?????????????# | | ????????????????????????# #???????????#### | | ????????????????????????# ##?????????## | | ????????????????????????# !#######???# & | | ????????????????????????## % #???#& | | ?????????????????????????# #??## & | | ?????????????????????????# ####### #?## | | ?????????????????????????# ## #?????# ### | | ?????????????????????????# ### #?????# | | ?????????????????### ##### #?# #?????# | | ?????????? ! % #?# #?????####### | | ?????????????????#######;a###?# ???????????## | | ????????????????????????#a#####"#????????????## | | ????????????????????????#aa ##???????????## | | ????????????????###?????#a### #???????????# | | ????????????????# ###???#%#?? ##??????????# | | ???????????s????# ##??#%#??# ##?????????# | | ??????????????### ####%#??# #????????## | | ??????????????# % @#?## #????????# | | ?????????????# ####### ?????????# | | ?????????????# #######???## #?????????# | | ??????????????????????????? #?????????## | | ???????????????????????????? ##?????????# | | ?????????????????????????????# #?????????# ## | | ??????????????????????????????# #?????????# ## | | ?????????????????????????????## #?????????# #? | | ????????????????????????????## ##?????????# ## | | ???????????????????????????## ##??????????# # | | ?????????????????????????### #??????????## | | ????????????????????????## ##????????## | | ???????????????????###### ######??## | | ???????????????????# #### | | ??????#?????###????# ## ## | | ??????# ???? #????# #### #### | | ??????# #???# #???## #### ##??# | | ?????## #??# #??## #?###???## | | ?????# ### #??# #????????## # | | ?????# #### #?????????# ## ## | | ?????# ## ##?????????## ####### ## | | ????# ###???????????####?????## # | | ????# ########????????????????## | | ????# ### #????????????????## | | ????## #####?# ####### #?????????????????#### | +----------------------------------------------------+ Best States ------------- Heat Dissipation 25 Energy Generation 14 Energy Capacity 160 Matter Stores 300 Matter Capacity 300 Sight Range 16 Terrain Scan Density 10 Armor Coverage 80 Evasion (%) 40 Recoil Reduction 2 Offensive Hacking 10 Item Schematics ----------------- None Robot Schematics ------------------ None Fabricated ------------ Nothing Repaired ---------- Lgt. Treads | 2% | -10/Materials Studied --------- None Alien Tech Used ----------------- None Achievements -------------- Analysis Probe Fitting Room Challenges ------------ None Game ------ Seed ClaymoresElectronMatrix Manual? 0 Play Time 00:34:29 Cumulative 346.7 hours Start 2026.07.25 @ 10:51:13 End 2026.07.25 @ 11:24:43 Sessions 1 Manual Loads 0 Difficulty Rogue Special Mode None Game No. 202 Rogue 128 Adventurer 74 Explorer 0 Win Type - Total 17 Types 14/0/0/3/0/0/0/0/0/0 Lore% 73 Gallery% 66 Achievement% 52 Wizard Run 0 Options --------- Layout 2 ASCII 0 Keyboard 0 Movement Mouse Keybinds 0 Fullscreen 1 Font 32/SmallcapsGlow Map View 50x44 Zoom Use 0% Tactical HUD 1 Map Filters NONE Filters NONE Steam 1 RUN: 2506984a-deee-4226-aaef-91228b7b753c